fUST/lending_fUST_20250422
["ID","MTS","AMOUNT","RATE_DAILY","PERIOD"]
[358623598,1745316642745,-500.0,0.00022465,2]
[358623599,1745316642759,-500.0,0.00022465,2]
[358623600,1745316642773,-500.0,0.00022465,2]
[358623601,1745316642787,-818.84,0.00022465,2]
[358623602,1745316642800,-856.16,0.00022465,2]
[358623603,1745316642812,-500.0,0.00022465,2]
[358623604,1745316642823,-500.0,0.00022465,2]
[358623605,1745316642836,-155.49543118,0.00022465,2]
[358623606,1745316642849,-609.55,0.00022465,2]
[358623608,1745316642860,-500.0,0.00022465,2]
[358623609,1745316642872,-500.0,0.00022465,2]
[358623610,1745316642885,-500.0,0.00022465,2]
[358623611,1745316642898,-535.31223759,0.00022465,2]
[358623614,1745316642913,-500.0,0.00022465,2]
[358623615,1745316642925,-626.85290962,0.00022465,2]
[358623616,1745316642938,-3701.41,0.00022465,2]
[358623617,1745316642952,-500.0,0.00022465,2]
[358623618,1745316642965,-500.0,0.00022465,2]
[358623619,1745316642979,-738.73,0.00022465,2]
[358623621,1745316642991,-717.27,0.00022465,2]
[358623623,1745316643006,-547.27,0.00022465,2]
[358623625,1745316643018,-624.61,0.00022465,2]
[358623627,1745316643030,-1601.28,0.00022465,2]
[358623629,1745316643040,-740.44,0.00022465,2]
[358623631,1745316643050,-500.0,0.00022465,2]
[358623633,1745316643061,-500.0,0.00022465,2]
[358623634,1745316643073,-500.0,0.00022465,2]
[358623635,1745316643087,-544.56,0.00022465,2]
[358623636,1745316643100,-515.5,0.00022465,2]
[358623637,1745316643113,-1974.53,0.00022465,2]
[358623638,1745316643127,-500.0,0.00022465,2]
[358623639,1745316643143,-797.79,0.00022465,2]
[358623640,1745316643155,-500.0,0.00022465,2]
[358623641,1745316643168,-500.0,0.00022465,2]
[358623642,1745316643180,-620.91,0.00022465,2]
[358623643,1745316643195,-500.0,0.00022465,2]
[358623644,1745316643215,-170.64845017,0.00022465,2]
[358623645,1745316643228,-4380.88,0.00022465,2]
[358623646,1745316643241,-3211.48,0.00022465,2]
[358623647,1745316643252,-500.0,0.00022465,2]
[358623648,1745316643263,-596.31,0.00022465,2]
[358623649,1745316643274,-645.33270116,0.00022465,2]
[358623650,1745316643287,-500.0,0.00022465,2]
[358623651,1745316643299,-500.0,0.00022466,2]
[358623652,1745316643311,-500.0,0.00022538,2]
[358623653,1745316643323,-500.0,0.00022565,2]
[358623654,1745316643335,-500.0,0.00022739,2]
[358623655,1745316643348,-500.0,0.00022739,2]
[358623656,1745316643360,-776.83,0.00022739,2]
[358623657,1745316643371,-500.0,0.00022739,2]
[358623658,1745316643384,-881.43,0.00022739,2]
[358623659,1745316643396,-500.0,0.00022739,2]
[358623660,1745316643409,-500.0,0.00022739,2]
[358623661,1745316643423,-500.0,0.00022739,2]
[358623662,1745316643435,-500.0,0.00022739,2]
[358623663,1745316643447,-500.0,0.00022739,2]
[358623664,1745316643460,-586.6,0.00022739,2]
[358623665,1745316643472,-500.0,0.00022739,2]
[358623666,1745316643484,-500.0,0.00022739,2]
[358623667,1745316643497,-500.0,0.00022739,2]
[358623668,1745316643510,-500.0,0.00022739,2]
[358623669,1745316643522,-500.0,0.00022739,2]
[358623670,1745316643534,-500.0,0.00022739,2]
[358623672,1745316643546,-500.0,0.00022739,2]
[358623675,1745316643560,-715.14,0.00022739,2]
[358623676,1745316643572,-641.87,0.00022739,2]
[358623677,1745316643584,-839.16,0.00022739,2]
[358623678,1745316643596,-500.0,0.00022739,2]
[358623679,1745316643608,-631.79,0.00022739,2]
[358623680,1745316643620,-500.0,0.00022739,2]
[358623681,1745316643632,-500.0,0.00022739,2]
[358623682,1745316643644,-500.0,0.00022739,2]
[358623683,1745316643672,-634.56,0.00022739,2]
[358623684,1745316643686,-500.0,0.00022739,2]
[358623685,1745316643702,-500.0,0.00022739,2]
[358623686,1745316643717,-1089.37,0.00022739,2]
[358623687,1745316643730,-500.0,0.00022739,2]
[358623688,1745316643744,-883.94,0.00022739,2]
[358623689,1745316643758,-330.65029195,0.00022739,2]
[358623690,1745316643771,-500.0,0.00022739,2]
[358623691,1745316643784,-500.0,0.00022739,2]
[358623692,1745316643797,-500.0,0.00022739,2]
[358623693,1745316643811,-500.0,0.00022739,2]
[358623694,1745316643823,-500.0,0.00022739,2]
[358623696,1745316643838,-1831.82,0.00022739,2]
[358623699,1745316643853,-571.1,0.00022739,2]
[358623701,1745316643867,-1368.66,0.00022739,2]
[358623702,1745316643880,-500.0,0.00022739,2]
[358623703,1745316643894,-500.0,0.00022739,2]
[358623704,1745316643907,-500.0,0.00022739,2]
[358623705,1745316643920,-500.0,0.00022739,2]
[358623706,1745316643933,-500.0,0.00022739,2]
[358623707,1745316643946,-500.0,0.00022739,2]
[358623708,1745316643958,-500.0,0.00022739,2]
[358623709,1745316643972,-500.0,0.00022739,2]
[358623710,1745316643984,-500.0,0.00022739,2]
[358623711,1745316643996,-298.99579356,0.00022739,2]
[358623712,1745316644009,-908.54,0.00022739,2]
[358623713,1745316644021,-571.01,0.00022739,2]
[358623714,1745316644034,-500.0,0.00022739,2]
[358623715,1745316644047,-500.0,0.00022739,2]
[358623716,1745316644059,-500.0,0.00022739,2]
[358623717,1745316644071,-500.0,0.00022739,2]
[358623718,1745316644084,-500.0,0.00022739,2]
[358623719,1745316644096,-500.0,0.00022739,2]
[358623720,1745316644108,-11058.94,0.00022739,2]
[358623721,1745316644119,-5894.62,0.00022739,2]
[358623722,1745316644131,-500.0,0.00022739,2]
[358623723,1745316644144,-500.0,0.00022739,2]
[358623724,1745316644156,-524.16,0.00022739,2]
[358623725,1745316644167,-597.28,0.00022739,2]
[358623726,1745316644180,-500.0,0.00022739,2]
[358623727,1745316644192,-500.0,0.00022739,2]
[358623728,1745316644205,-500.0,0.00022739,2]
[358623729,1745316644218,-818.84,0.00022739,2]
[358623730,1745316644231,-856.16,0.00022739,2]
[358623731,1745316644250,-500.0,0.00022739,2]
[358623732,1745316644264,-500.0,0.00022739,2]
[358623733,1745316644278,-609.55,0.00022739,2]
[358623734,1745316644292,-500.0,0.00022739,2]
[358623735,1745316644307,-500.0,0.00022739,2]
[358623736,1745316644323,-500.0,0.00022739,2]
[358623737,1745316644336,-500.0,0.00022739,2]
[358623738,1745316644553,-3701.41,0.00022739,2]
[358623739,1745316644581,-500.0,0.00022739,2]
[358623740,1745316644594,-500.0,0.00022739,2]
[358623741,1745316644604,-738.73,0.00022739,2]
[358623742,1745316644614,-717.27,0.00022739,2]
[358623743,1745316644624,-547.27,0.00022739,2]
[358623744,1745316644634,-624.61,0.00022739,2]
[358623745,1745316644645,-1601.28,0.00022739,2]
[358623746,1745316644655,-740.44,0.00022739,2]
[358623747,1745316644665,-500.0,0.00022739,2]
[358623748,1745316644675,-534.93643631,0.00022739,2]
[358623749,1745316644685,-500.0,0.00022739,2]
[358623750,1745316644695,-544.56,0.00022739,2]
[358623751,1745316644705,-515.5,0.00022739,2]
[358623752,1745316644715,-1974.53,0.00022739,2]
[358623753,1745316644725,-500.0,0.00022739,2]
[358623754,1745316644734,-797.79,0.00022739,2]
[358623755,1745316644744,-500.0,0.00022739,2]
[358623756,1745316644754,-500.0,0.00022739,2]
[358623757,1745316644764,-620.91,0.00022739,2]
[358623758,1745316644776,-500.0,0.00022739,2]
[358623759,1745316644786,-4380.88,0.00022739,2]
[358623760,1745316644796,-3211.48,0.00022739,2]
[358623761,1745316644806,-500.0,0.00022739,2]
[358623762,1745316644817,-596.31,0.00022739,2]
[358623763,1745316644827,-500.0,0.00022739,2]
[358623764,1745316644837,-1241.67145347,0.000229,4]
[358623765,1745316644847,-420.0,0.00022951,2]
[358623766,1745316644856,-289.0,0.00023,2]
[358623767,1745316644866,-500.0,0.00023013,2]
[358623768,1745316644876,-595.25019121,0.00023013,2]
[358623769,1745316644886,-500.0,0.00023013,2]
[358623770,1745316644895,-776.83,0.00023013,2]
[358623771,1745316644905,-500.0,0.00023013,2]
[358623772,1745316644915,-881.43,0.00023013,2]
[358623773,1745316644925,-500.0,0.00023013,2]
[358623774,1745316644935,-500.0,0.00023013,2]
[358623775,1745316644945,-500.0,0.00023013,2]
[358623776,1745316644954,-500.0,0.00023013,2]
[358623777,1745316644964,-500.0,0.00023013,2]
[358623778,1745316644974,-586.6,0.00023013,2]
[358623779,1745316644984,-500.0,0.00023013,2]
[358623780,1745316644994,-500.0,0.00023013,2]
[358623781,1745316645003,-644.01503513,0.00023013,2]
[358623782,1745316645013,-500.0,0.00023013,2]
[358623783,1745316645023,-500.0,0.00023013,2]
[358623784,1745316645034,-500.0,0.00023013,2]
[358623785,1745316645043,-500.0,0.00023013,2]
[358623786,1745316645053,-715.14,0.00023013,2]
[358623787,1745316645063,-641.87,0.00023013,2]
[358623788,1745316645073,-839.16,0.00023013,2]
[358623789,1745316645082,-500.0,0.00023013,2]
[358623790,1745316645092,-631.79,0.00023013,2]
[358623791,1745316645102,-500.0,0.00023013,2]
[358623792,1745316645112,-500.0,0.00023013,2]
[358623793,1745316645121,-413.10606189,0.00023013,2]
[358623794,1745316645132,-634.56,0.00023013,2]
[358623795,1745316645141,-500.0,0.00023013,2]
[358623796,1745316645151,-500.0,0.00023013,2]
[358623797,1745316645161,-1089.37,0.00023013,2]
[358623798,1745316645171,-500.0,0.00023013,2]
[358623799,1745316645181,-883.94,0.00023013,2]
[358623800,1745316645191,-500.0,0.00023013,2]
[358623801,1745316645201,-500.0,0.00023013,2]
[358623802,1745316645210,-500.0,0.00023013,2]
[358623803,1745316645220,-500.0,0.00023013,2]
[358623804,1745316645230,-500.0,0.00023013,2]
[358623805,1745316645241,-1831.82,0.00023013,2]
[358623806,1745316645251,-571.1,0.00023013,2]
[358623807,1745316645261,-1368.66,0.00023013,2]
[358623808,1745316645271,-500.0,0.00023013,2]
[358623809,1745316645281,-500.0,0.00023013,2]
[358623810,1745316645290,-500.0,0.00023013,2]
[358623811,1745316645300,-500.0,0.00023013,2]
[358623812,1745316645311,-500.0,0.00023013,2]
[358623813,1745316645320,-500.0,0.00023013,2]
[358623814,1745316645330,-500.0,0.00023013,2]
[358623815,1745316645339,-500.0,0.00023013,2]
[358623816,1745316645349,-500.0,0.00023013,2]
[358623817,1745316645359,-908.54,0.00023013,2]
[358623818,1745316645370,-571.01,0.00023013,2]
[358623819,1745316645379,-500.0,0.00023013,2]
[358623820,1745316645389,-500.0,0.00023013,2]
[358623821,1745316645399,-500.0,0.00023013,2]
[358623822,1745316645411,-500.0,0.00023013,2]
[358623823,1745316645421,-500.0,0.00023013,2]
[358623824,1745316645431,-11058.94,0.00023013,2]
[358623825,1745316645441,-5894.62,0.00023013,2]
[358623826,1745316645452,-500.0,0.00023013,2]
[358623827,1745316645462,-290.27981351,0.00023013,2]
[358623828,1745316645472,-524.16,0.00023013,2]
[358623829,1745316645483,-47.95033306,0.00023013,2]
[358623830,1745316645609,-549.32966694,0.00023013,2]
[358623831,1745316645619,-500.0,0.00023013,2]
[358623832,1745316645641,-500.0,0.00023013,2]
[358623833,1745316645653,-500.0,0.00023013,2]
[358623834,1745316645663,-818.84,0.00023013,2]
[358623835,1745316645673,-856.16,0.00023013,2]
[358623836,1745316645683,-500.0,0.00023013,2]
[358623837,1745316645693,-500.0,0.00023013,2]
[358623838,1745316645704,-609.55,0.00023013,2]
[358623839,1745316645715,-500.0,0.00023013,2]
[358623840,1745316645725,-500.0,0.00023013,2]
[358623841,1745316645736,-500.0,0.00023013,2]
[358623843,1745316645745,-500.0,0.00023013,2]
[358623845,1745316645755,-3701.41,0.00023013,2]
[358623846,1745316645765,-500.0,0.00023013,2]
[358623847,1745316645775,-500.0,0.00023013,2]
[358623848,1745316645785,-738.73,0.00023013,2]
[358623849,1745316645796,-717.27,0.00023013,2]
[358623850,1745316645806,-547.27,0.00023013,2]
[358623851,1745316645815,-624.61,0.00023013,2]
[358623853,1745316645826,-1601.28,0.00023013,2]
[358623855,1745316645837,-740.44,0.00023013,2]
[358623857,1745316645847,-632.66703073,0.00023013,2]
[358623858,1745316645857,-500.0,0.00023013,2]
[358623859,1745316645868,-544.56,0.00023013,2]
[358623860,1745316645878,-515.5,0.00023013,2]
[358623861,1745316645888,-1974.53,0.00023013,2]
[358623862,1745316645899,-610.187219,0.00023013,2]
[358623863,1745316645910,-797.79,0.00023013,2]
[358623864,1745316645921,-500.0,0.00023013,2]
[358623865,1745316645931,-304.20680205,0.00023013,2]
[358623866,1745316645942,-620.91,0.00023013,2]
[358623867,1745316645952,-500.0,0.00023013,2]
[358623868,1745316645962,-4380.88,0.00023013,2]
[358623869,1745316645972,-3211.48,0.00023013,2]
[358623870,1745316645982,-500.0,0.00023013,2]
[358623871,1745316645993,-596.31,0.00023013,2]
[358623872,1745316646004,-500.0,0.00023013,2]
[358623873,1745316646013,-500.0,0.00023014,2]
[358623874,1745316646023,-500.0,0.00023287,2]
[358623875,1745316646035,-500.0,0.00023287,2]
[358623876,1745316646045,-776.83,0.00023287,2]
[358623877,1745316646055,-500.0,0.00023287,2]
[358623879,1745316646065,-881.43,0.00023287,2]
[358623880,1745316646074,-500.0,0.00023287,2]
[358623881,1745316646084,-500.0,0.00023287,2]
[358623882,1745316646094,-500.0,0.00023287,2]
[358623883,1745316646104,-500.0,0.00023287,2]
[358623884,1745316646115,-500.0,0.00023287,2]
[358623885,1745316646125,-586.6,0.00023287,2]
[358623886,1745316646135,-500.0,0.00023287,2]
[358623887,1745316646145,-500.0,0.00023287,2]
[358623888,1745316646155,-500.0,0.00023287,2]
[358623890,1745316646166,-500.0,0.00023287,2]
[358623892,1745316646176,-500.0,0.00023287,2]
[358623893,1745316646186,-500.0,0.00023287,2]
[358623894,1745316646196,-715.14,0.00023287,2]
[358623895,1745316646206,-641.87,0.00023287,2]
[358623896,1745316646216,-839.16,0.00023287,2]
[358623897,1745316646225,-500.0,0.00023287,2]
[358623898,1745316646235,-631.79,0.00023287,2]
[358623899,1745316646246,-218.8907828,0.00023287,2]
[358623900,1745316646260,-500.0,0.00023287,2]
[358623901,1745316646270,-634.56,0.00023287,2]
[358623902,1745316646280,-500.0,0.00023287,2]
[358623903,1745316646290,-500.0,0.00023287,2]
[358623904,1745316646299,-1089.37,0.00023287,2]
[358623905,1745316646310,-500.0,0.00023287,2]
[358623907,1745316646320,-883.94,0.00023287,2]
[358623908,1745316646330,-500.0,0.00023287,2]
[358623910,1745316646340,-500.0,0.00023287,2]
[358623911,1745316646350,-245.34677359,0.00023287,2]
[358623912,1745316646359,-500.0,0.00023287,2]
[358623913,1745316646369,-500.0,0.00023287,2]
[358623914,1745316646380,-1831.82,0.00023287,2]
[358623915,1745316646390,-571.1,0.00023287,2]
[358623916,1745316646400,-1368.66,0.00023287,2]
[358623917,1745316646414,-500.0,0.00023287,2]
[358623918,1745316646425,-500.0,0.00023287,2]
[358623919,1745316646435,-500.0,0.00023287,2]
[358623920,1745316646444,-500.0,0.00023287,2]
[358623921,1745316646454,-500.0,0.00023287,2]
[358623922,1745316646464,-500.0,0.00023287,2]
[358623923,1745316646475,-500.0,0.00023287,2]
[358623924,1745316646486,-500.0,0.00023287,2]
[358623925,1745316646496,-500.0,0.00023287,2]
[358623926,1745316646506,-908.54,0.00023287,2]
[358623927,1745316646516,-571.01,0.00023287,2]
[358623928,1745316646526,-500.0,0.00023287,2]
[358623929,1745316646536,-500.0,0.00023287,2]
[358623930,1745316646547,-500.0,0.00023287,2]
[358623931,1745316646557,-500.0,0.00023287,2]
[358623932,1745316646567,-500.0,0.00023287,2]
[358623933,1745316646577,-11058.94,0.00023287,2]
[358623934,1745316646586,-5894.62,0.00023287,2]
[358623935,1745316646596,-500.0,0.00023287,2]
[358623936,1745316646606,-524.16,0.00023287,2]
[358623937,1745316646616,-597.28,0.00023287,2]
[358623938,1745316646625,-500.0,0.00023287,2]
[358623939,1745316646635,-500.0,0.00023287,2]
[358623940,1745316646646,-500.0,0.00023287,2]
[358623941,1745316646656,-818.84,0.00023287,2]
[358623942,1745316646666,-856.16,0.00023287,2]
[358623943,1745316646676,-500.0,0.00023287,2]
[358623944,1745316646686,-500.0,0.00023287,2]
[358623945,1745316646696,-609.55,0.00023287,2]
[358623946,1745316646705,-500.0,0.00023287,2]
[358623947,1745316646717,-500.0,0.00023287,2]
[358623948,1745316646726,-500.0,0.00023287,2]
[358623949,1745316646736,-500.0,0.00023287,2]
[358623950,1745316646746,-3701.41,0.00023287,2]
[358623951,1745316646756,-500.0,0.00023287,2]
[358623952,1745316646767,-500.0,0.00023287,2]
[358623953,1745316646776,-738.73,0.00023287,2]
[358623954,1745316646787,-717.27,0.00023287,2]
[358623955,1745316646796,-547.27,0.00023287,2]
[358623956,1745316646806,-624.61,0.00023287,2]
[358623957,1745316646817,-1601.28,0.00023287,2]
[358623958,1745316646826,-740.44,0.00023287,2]
[358623959,1745316646836,-500.0,0.00023287,2]
[358623960,1745316646845,-544.56,0.00023287,2]
[358623961,1745316646855,-515.5,0.00023287,2]
[358623962,1745316646865,-1974.53,0.00023287,2]
[358623963,1745316646875,-797.79,0.00023287,2]
[358623964,1745316646884,-500.0,0.00023287,2]
[358623965,1745316646894,-620.91,0.00023287,2]
[358623966,1745316646904,-500.0,0.00023287,2]
[358623967,1745316646915,-4380.88,0.00023287,2]
[358623968,1745316646926,-3211.48,0.00023287,2]
[358623969,1745316646937,-500.0,0.00023287,2]
[358623970,1745316646947,-596.31,0.00023287,2]
[358623971,1745316646957,-500.0,0.00023287,2]
[358623972,1745316646968,-2180.88236709,0.00023306,2]
[358623973,1745316646978,-215.0738,0.00023484,2]
[358623974,1745316646988,-347.437,0.0002349,4]
[358623975,1745316646999,-500.0,0.00023561,2]
[358623976,1745316647009,-317.02297368,0.00023561,2]
[358623977,1745316647020,-776.83,0.00023561,2]
[358623978,1745316647030,-500.0,0.00023561,2]
[358623979,1745316647041,-881.43,0.00023561,2]
[358623980,1745316647051,-500.0,0.00023561,2]
[358623981,1745316647062,-500.0,0.00023561,2]
[358623982,1745316647071,-500.0,0.00023561,2]
[358623983,1745316647081,-500.0,0.00023561,2]
[358623984,1745316647091,-500.0,0.00023561,2]
[358623985,1745316647100,-586.6,0.00023561,2]
[358623986,1745316647109,-500.0,0.00023561,2]
[358623987,1745316647120,-632.84967538,0.00023561,2]
[358623988,1745316647130,-500.0,0.00023561,2]
[358623989,1745316647140,-500.0,0.00023561,2]
[358623990,1745316647151,-500.0,0.00023561,2]
[358623991,1745316647161,-500.0,0.00023561,2]
[358623992,1745316647171,-715.14,0.00023561,2]
[358623993,1745316647181,-641.87,0.00023561,2]
[358623994,1745316647190,-839.16,0.00023561,2]
[358623995,1745316647200,-500.0,0.00023561,2]
[358623996,1745316647209,-631.79,0.00023561,2]
[358623997,1745316647219,-500.0,0.00023561,2]
[358623998,1745316647228,-634.56,0.00023561,2]
[358623999,1745316647237,-500.0,0.00023561,2]
[358624000,1745316647247,-500.0,0.00023561,2]
[358624001,1745316647257,-1089.37,0.00023561,2]
[358624002,1745316647267,-500.0,0.00023561,2]
[358624003,1745316647277,-883.94,0.00023561,2]
[358624004,1745316647287,-500.0,0.00023561,2]
[358624005,1745316647298,-500.0,0.00023561,2]
[358624006,1745316647308,-500.0,0.00023561,2]
[358624007,1745316647318,-500.0,0.00023561,2]
[358624008,1745316647329,-1831.82,0.00023561,2]
[358624009,1745316647340,-571.1,0.00023561,2]
[358624010,1745316647350,-1368.66,0.00023561,2]
[358624011,1745316647360,-500.0,0.00023561,2]
[358624012,1745316647371,-500.0,0.00023561,2]
[358624013,1745316647381,-500.0,0.00023561,2]
[358624014,1745316647391,-500.0,0.00023561,2]
[358624015,1745316647401,-500.0,0.00023561,2]
[358624016,1745316647415,-500.0,0.00023561,2]
[358624017,1745316647425,-500.0,0.00023561,2]
[358624018,1745316647435,-500.0,0.00023561,2]
[358624019,1745316647445,-500.0,0.00023561,2]
[358624020,1745316647457,-908.54,0.00023561,2]
[358624021,1745316647467,-571.01,0.00023561,2]
[358624022,1745316647478,-500.0,0.00023561,2]
[358624023,1745316647489,-282.9841642,0.00023561,2]
[358624024,1745316647499,-500.0,0.00023561,2]
[358624025,1745316647510,-151.0,0.00023561,7]
[358624026,1745316647520,-500.0,0.00023561,2]
[358624027,1745316647530,-500.0,0.00023561,2]
[358624028,1745316647540,-11058.94,0.00023561,2]
[358624029,1745316647550,-5894.62,0.00023561,2]
[358624030,1745316647560,-500.0,0.00023561,2]
[358624031,1745316647570,-524.16,0.00023561,2]
[358624032,1745316647580,-597.28,0.00023561,2]
[358624033,1745316647591,-500.0,0.00023561,2]
[358624034,1745316647601,-500.0,0.00023561,2]
[358624035,1745316647611,-500.0,0.00023561,2]
[358624036,1745316647622,-818.84,0.00023561,2]
[358624037,1745316647632,-856.16,0.00023561,2]
[358624038,1745316647642,-500.0,0.00023561,2]
[358624039,1745316647653,-500.0,0.00023561,2]
[358624040,1745316647662,-609.55,0.00023561,2]
[358624041,1745316647672,-500.0,0.00023561,2]
[358624042,1745316647684,-500.0,0.00023561,2]
[358624043,1745316647694,-500.0,0.00023561,2]
[358624044,1745316647704,-500.0,0.00023561,2]
[358624045,1745316647714,-3701.41,0.00023561,2]
[358624046,1745316647724,-500.0,0.00023561,2]
[358624047,1745316647734,-500.0,0.00023561,2]
[358624048,1745316647745,-738.73,0.00023561,2]
[358624049,1745316647756,-717.27,0.00023561,2]
[358624050,1745316647766,-547.27,0.00023561,2]
[358624051,1745316647775,-624.61,0.00023561,2]
[358624052,1745316647785,-1601.28,0.00023561,2]
[358624053,1745316647795,-740.44,0.00023561,2]
[358624054,1745316647805,-500.0,0.00023561,2]
[358624055,1745316647815,-544.56,0.00023561,2]
[358624056,1745316647826,-515.5,0.00023561,2]
[358624057,1745316647835,-1974.53,0.00023561,2]
[358624058,1745316647846,-797.79,0.00023561,2]
[358624059,1745316647855,-500.0,0.00023561,2]
[358624060,1745316647865,-620.91,0.00023561,2]
[358624061,1745316647875,-500.0,0.00023561,2]
[358624062,1745316647884,-4380.88,0.00023561,2]
[358624063,1745316647894,-3211.48,0.00023561,2]
[358624064,1745316647904,-500.0,0.00023561,2]
[358624065,1745316647914,-596.31,0.00023561,2]
[358624066,1745316647924,-500.0,0.00023561,2]
[358624067,1745316647934,-500.0,0.00023562,2]
[358624068,1745316647944,-500.0,0.00023647,2]
[358624069,1745316647953,-500.0,0.00023647,2]
[358624070,1745316647964,-1241.67145333,0.00023659,4]
[358624071,1745316647975,-500.0,0.00023835,2]
[358624072,1745316647984,-776.83,0.00023835,2]
[358624073,1745316648169,-500.0,0.00023835,2]
[358624074,1745316648180,-881.43,0.00023835,2]
[358624075,1745316648191,-500.0,0.00023835,2]
[358624076,1745316648202,-500.0,0.00023835,2]
[358624077,1745316648213,-500.0,0.00023835,2]
[358624078,1745316648223,-500.0,0.00023835,2]
[358624079,1745316648234,-500.0,0.00023835,2]
[358624080,1745316648244,-586.6,0.00023835,2]
[358624081,1745316648255,-500.0,0.00023835,2]
[358624082,1745316648265,-500.0,0.00023835,2]
[358624083,1745316648276,-500.0,0.00023835,2]
[358624084,1745316648287,-500.0,0.00023835,2]
[358624085,1745316648297,-500.0,0.00023835,2]
[358624086,1745316648308,-715.14,0.00023835,2]
[358624087,1745316648319,-641.87,0.00023835,2]
[358624088,1745316648329,-839.16,0.00023835,2]
[358624089,1745316648339,-500.0,0.00023835,2]
[358624090,1745316648349,-631.79,0.00023835,2]
[358624091,1745316648360,-500.0,0.00023835,2]
[358624092,1745316648371,-634.56,0.00023835,2]
[358624093,1745316648382,-500.0,0.00023835,2]
[358624094,1745316648391,-500.0,0.00023835,2]
[358624095,1745316648401,-1089.37,0.00023835,2]
[358624096,1745316648415,-500.0,0.00023835,2]
[358624097,1745316648425,-151.0,0.00023835,7]
[358624098,1745316648435,-883.94,0.00023835,2]
[358624099,1745316648446,-500.0,0.00023835,2]
[358624100,1745316648457,-500.0,0.00023835,2]
[358624101,1745316648467,-500.0,0.00023835,2]
[358624102,1745316648477,-500.0,0.00023835,2]
[358624103,1745316648488,-1831.82,0.00023835,2]
[358624104,1745316648499,-571.1,0.00023835,2]
[358624105,1745316648509,-1368.66,0.00023835,2]
[358624106,1745316648519,-151.0,0.00023835,7]
[358624107,1745316648529,-500.0,0.00023835,2]
[358624108,1745316648540,-500.0,0.00023835,2]
[358624109,1745316648550,-500.0,0.00023835,2]
[358624110,1745316648561,-500.0,0.00023835,2]
[358624111,1745316648571,-151.0,0.00023835,2]
[358624112,1745316648581,-500.0,0.00023835,2]
[358624113,1745316648593,-151.0,0.00023835,2]
[358624114,1745316648603,-500.0,0.00023835,2]
[358624115,1745316648614,-500.0,0.00023835,2]
[358624116,1745316648624,-309.95993235,0.00023835,2]
[358624117,1745316648634,-500.0,0.00023835,2]
[358624118,1745316648643,-908.54,0.00023835,2]
[358624119,1745316648653,-571.01,0.00023835,2]
[358624120,1745316648663,-500.0,0.00023835,2]
[358624121,1745316648673,-264.85450772,0.00023835,2]
[358624122,1745316648683,-500.0,0.00023835,2]
[358624123,1745316648694,-500.0,0.00023835,2]
[358624124,1745316648703,-11058.94,0.00023835,2]